fUST/lending_fUST_20250313
["ID","MTS","AMOUNT","RATE_DAILY","PERIOD"]
[356049673,1741851778179,-151.0,0.00012543,2]
[356049674,1741851778200,-500.0,0.00012543,2]
[356049675,1741851778220,-200.0596081,0.00012544,2]
[356049676,1741851778241,-559.6044626,0.000126,2]
[356049677,1741851778261,-155.4628988,0.000126,2]
[356049678,1741851778282,-186.8724011,0.000126,2]
[356049679,1741851778303,-174.9799195,0.000126,2]
[356049680,1741851778325,-227.7661513,0.000126,2]
[356049681,1741851778346,-155.4628988,0.000126,2]
[356049682,1741851778367,-559.6044626,0.000126,2]
[356049683,1741851778388,-186.8724011,0.000126,2]
[356049684,1741851778409,-357.1226405,0.000126,2]
[356049685,1741851778431,-153.0,0.000126,2]
[356049686,1741851778452,-186.8724011,0.000126,2]
[356049687,1741851778473,-153.0,0.000126,2]
[356049688,1741851778503,-155.4628988,0.000126,2]
[356049689,1741851778527,-559.6044626,0.000126,2]
[356049690,1741851778548,-863.58875893,0.00012628,2]
[356049691,1741851778568,-155.4628988,0.000128,2]
[356049692,1741851778590,-167.8448478,0.000128,2]
[356049693,1741851778610,-559.6044626,0.000128,2]
[356049694,1741851778631,-354.7172489,0.000128,2]
[356049695,1741851778653,-155.4628988,0.000128,2]
[356049696,1741851778674,-559.6044626,0.000128,2]
[356049697,1741851778695,-186.8724011,0.000128,2]
[356049698,1741851778718,-559.6044626,0.000128,2]
[356049699,1741851778739,-357.1226405,0.000128,2]
[356049700,1741851778761,-274.3582227,0.000128,2]
[356049701,1741851778782,-151.0,0.000128,2]
[356049702,1741851778803,-151.0,0.000128,2]
[356049703,1741851778825,-151.0,0.000128,2]
[356049704,1741851778846,-224.790472,0.000128,2]
[356049705,1741851778867,-151.0,0.000128,2]
[356049706,1741851778889,-151.0,0.000128,2]
[356049707,1741851778910,-151.0,0.000128,2]
[356049708,1741851778932,-151.0,0.000128,2]
[356049709,1741851778954,-167.8448478,0.000129,2]
[356049710,1741851778975,-159.6026492,0.000129,2]
[356049711,1741851778997,-167.8448478,0.000129,2]
[356049712,1741851779020,-574.4482187,0.000129,2]
[356049713,1741851779041,-186.8724011,0.000129,2]
[356049714,1741851779063,-151.0,0.000129,2]
[356049715,1741851779084,-187.657917,0.000129,2]
[356049716,1741851779104,-151.0,0.000129,2]
[356049717,1741851779126,-2212.42404898,0.000129,2]
[356049718,1741851779147,-418.49390171,0.00012954,2]
[356049719,1741851779168,-1000.0,0.00012992,2]
[356049720,1741851779189,-151.0,0.00012992,2]
[356049721,1741851779210,-300.97123,0.00012992,2]
[356049722,1741851779231,-300.97123,0.00012992,2]
[356049723,1741851779252,-202.922946,0.00012992,2]
[356049724,1741851779274,-202.922946,0.00012992,2]
[356049725,1741851779294,-151.0,0.00012992,2]
[356049726,1741851779315,-151.0,0.00012992,2]
[356049727,1741851779336,-151.0,0.00012992,2]
[356049728,1741851779358,-151.0,0.00012992,2]
[356049729,1741851780111,2212.42404892,0.000129,2]
[356049730,1741851780750,1462.79099053,0.00013,2]
[356049732,1741851833054,-156.99699421,0.00013014,2]
[356049733,1741851833076,-150.0,0.00013075,2]
[356049734,1741851833098,-500.0,0.00013159,2]
[356049735,1741851833121,-156.99699421,0.00013178,2]
[356049736,1741851833143,-167.8448478,0.000132,2]
[356049737,1741851833165,-484.92943795,0.0001326,2]
[356049738,1741851833188,-2212.42404892,0.00013276,2]
[356049739,1741851833210,-151.0,0.00013293,2]
[356049740,1741851833231,-151.0,0.00013293,2]
[356049741,1741851833253,-186.8724011,0.000133,2]
[356049742,1741851833274,-151.0,0.000133,2]
[356049743,1741851833295,-151.0,0.000133,2]
[356049744,1741851833317,-279.94440249,0.00013319,2]
[356049745,1741851833340,-156.99699421,0.0001337,2]
[356049746,1741851833361,-279.94440246,0.00013389,2]
[356049747,1741851833384,-300.0,0.00013397,2]
[356049748,1741851833408,-295.422111,0.00013398,2]
[356049749,1741851833430,-151.0,0.00013398,2]
[356049750,1741851833452,-151.0,0.00013398,2]
[356049751,1741851833473,-175.3033,0.00013398,2]
[356049752,1741851833494,-222000.0,0.00013398,2]
[356049753,1741851834255,150.0,0.00013075,2]
[356049755,1741852161134,-198.5017184,0.00013153,2]
[356049756,1741852161160,-1052.8195256,0.000132,2]
[356049757,1741852161185,-167.9666415,0.00013397,2]
[356049758,1741852161209,-1382.76503061,0.00013397,2]
[356049759,1741852161234,-800.0,0.00013419,2]
[356049760,1741852161258,-486.26231496,0.00013433,2]
[356049761,1741852161281,-167.96664147,0.00013447,2]
[356049762,1741852161307,-294.824918,0.00013469,2]
[356049763,1741852161332,-300.97123,0.00013469,2]
[356049764,1741852161356,-300.97123,0.00013469,2]
[356049765,1741852161380,-202.922946,0.00013469,2]
[356049766,1741852161403,-202.922946,0.00013469,2]
[356049767,1741852161430,-151.0,0.0001349,2]
[356049768,1741852161454,-300.0,0.00013495,2]
[356049769,1741852161478,-225.72910883,0.00013496,2]
[356049770,1741852161503,-327.3314757,0.00013496,2]
[356049771,1741852161529,-447.2889598,0.00013496,2]
[356049772,1741852161553,-12177.32251313,0.00013497,2]
[356049773,1741852162666,-209822.67748687,0.00013497,2]
[356049774,1741852162690,-1000.0,0.00013497,2]
[356049775,1741852162711,-1000.0,0.00013497,2]
[356049776,1741852162733,-1000.0,0.00013497,2]
[356049777,1741852162754,-1000.0,0.00013497,2]
[356049778,1741852162777,-1000.0,0.00013497,2]
[356049779,1741852163058,-1000.0,0.00013497,2]
[356049780,1741852163079,-1000.0,0.00013497,2]
[356049781,1741852163100,-1000.0,0.00013497,2]
[356049782,1741852163121,-1000.0,0.00013497,2]
[356049783,1741852163142,-1000.0,0.00013497,2]
[356049784,1741852163163,-1000.0,0.00013497,2]
[356049785,1741852163183,-1000.0,0.00013497,2]
[356049786,1741852163204,-1000.0,0.00013497,2]
[356049787,1741852163224,-1000.0,0.00013497,2]
[356049788,1741852163246,-1000.0,0.00013497,2]
[356049789,1741852163267,-1017.2008666,0.00013497,2]
[356049790,1741852163288,-167.96664147,0.00013498,2]
[356049791,1741852163310,-151.0,0.00013498,2]
[356049792,1741852163331,-151.0,0.00013498,2]
[356049793,1741852163352,-151.0,0.00013498,2]
[356049794,1741852163372,-300.97123,0.00013498,2]
[356049795,1741852163392,-300.97123,0.00013498,2]
[356049796,1741852163413,-202.922946,0.00013498,2]
[356049797,1741852163434,-202.922946,0.00013498,2]
[356049798,1741852163455,-151.0,0.00013498,2]
[356049799,1741852163475,-151.0,0.00013498,2]
[356049800,1741852163495,-2923.73629709,0.00013511,2]
[356049801,1741852163516,-156.99699421,0.00013534,2]
[356049802,1741852163537,-167.96664147,0.00013548,2]
[356049803,1741852163558,-580.58593168,0.0001356,2]
[356049804,1741852163578,-312.31703269,0.00013561,2]
[356049805,1741852163600,-204.74256714,0.00013582,2]
[356049806,1741852163624,-492.18322147,0.00013585,2]
[356049807,1741852163645,-302.0,0.00013589,2]
[356049808,1741852163668,-1000.0,0.00013589,2]
[356049809,1741852163689,-800.0,0.00013597,2]
[356049810,1741852163710,-800.0,0.00013597,2]
[356049811,1741852163730,-800.0,0.00013597,2]
[356049812,1741852163750,-151.0,0.00013597,2]
[356049813,1741852163771,-151.0,0.00013597,2]
[356049814,1741852163800,-151.0,0.00013597,2]
[356049815,1741852163826,-151.0,0.00013597,2]
[356049816,1741852163849,-151.0,0.00013597,2]
[356049817,1741852163872,-151.0,0.00013597,2]
[356049818,1741852163895,-151.0,0.00013597,2]
[356049819,1741852163918,-151.0,0.00013597,2]
[356049820,1741852163940,-151.0,0.00013597,2]
[356049821,1741852163962,-151.0,0.00013597,2]
[356049822,1741852163984,-151.0,0.00013597,2]
[356049823,1741852164006,-151.0,0.00013597,2]
[356049824,1741852164028,-151.0,0.00013597,2]
[356049825,1741852164050,-151.0,0.00013597,2]
[356049826,1741852164072,-151.0,0.00013597,2]
[356049827,1741852164094,-151.0,0.00013597,2]
[356049828,1741852164116,-151.0,0.00013597,2]
[356049829,1741852164137,-233.740318,0.00013597,2]
[356049830,1741852164158,-8333.31,0.00013597,2]
[356049831,1741852164180,-8333.31,0.00013597,2]
[356049832,1741852164202,-8333.31,0.00013597,2]
[356049833,1741852164223,-8333.31,0.00013597,2]
[356049834,1741852164244,-8333.31,0.00013597,2]
[356049835,1741852164264,-8333.31,0.00013597,2]
[356049836,1741852164285,-8333.31,0.00013597,2]
[356049837,1741852164308,-8333.31,0.00013597,2]
[356049838,1741852164329,-8333.31,0.00013597,2]
[356049839,1741852164349,-8333.31,0.00013597,2]
[356049840,1741852164370,-8333.31,0.00013597,2]
[356049841,1741852164391,-8333.31,0.00013597,2]
[356049842,1741852164413,-301.999998,0.00013597,2]
[356049843,1741852164435,-300.97123,0.00013597,2]
[356049844,1741852164456,-300.97123,0.00013597,2]
[356049845,1741852164479,-300.97123,0.00013597,2]
[356049846,1741852164501,-300.97123,0.00013597,2]
[356049847,1741852164523,-300.97123,0.00013597,2]
[356049848,1741852164545,-300.97123,0.00013597,2]
[356049849,1741852164567,-300.97123,0.00013597,2]
[356049850,1741852164590,-300.97123,0.00013597,2]
[356049851,1741852164615,-300.97123,0.00013597,2]
[356049852,1741852164637,-300.97123,0.00013597,2]
[356049853,1741852164660,-300.97123,0.00013597,2]
[356049854,1741852164682,-300.97123,0.00013597,2]
[356049855,1741852164705,-300.97123,0.00013597,2]
[356049856,1741852164727,-300.971226,0.00013597,2]
[356049857,1741852164750,-202.922946,0.00013597,2]
[356049858,1741852164772,-202.922946,0.00013597,2]
[356049859,1741852164793,-202.922946,0.00013597,2]
[356049860,1741852164816,-202.922946,0.00013597,2]
[356049861,1741852164839,-202.922946,0.00013597,2]
[356049862,1741852164861,-202.922946,0.00013597,2]
[356049863,1741852164885,-202.922946,0.00013597,2]
[356049864,1741852164907,-202.922946,0.00013597,2]
[356049865,1741852164929,-202.922946,0.00013597,2]
[356049866,1741852164952,-202.922946,0.00013597,2]
[356049867,1741852164974,-202.922946,0.00013597,2]
[356049868,1741852164998,-202.922946,0.00013597,2]
[356049869,1741852165021,-202.922946,0.00013597,2]
[356049870,1741852165044,-202.922954,0.00013597,2]
[356049871,1741852165066,-151.0,0.00013597,2]
[356049872,1741852165088,-151.0,0.00013597,2]
[356049873,1741852165112,-151.0,0.00013597,2]
[356049874,1741852165134,-151.0,0.00013597,2]
[356049875,1741852165156,-151.0,0.00013597,2]
[356049876,1741852165179,-151.0,0.00013597,2]
[356049877,1741852165200,-151.0,0.00013597,2]
[356049878,1741852165222,-151.0,0.00013597,2]
[356049879,1741852165243,-151.0,0.00013597,2]
[356049880,1741852165265,-151.0,0.00013597,2]
[356049881,1741852165287,-151.0,0.00013597,2]
[356049882,1741852165310,-151.0,0.00013597,2]
[356049883,1741852165332,-1684.036489,0.00013597,2]
[356049884,1741852165355,-1684.036489,0.00013597,2]
[356049885,1741852165376,-1684.036489,0.00013597,2]
[356049886,1741852165397,-1684.036489,0.00013597,2]
[356049887,1741852165419,-151.0,0.00013597,2]
[356049888,1741852165440,-151.0,0.00013597,2]
[356049889,1741852165462,-174.788974,0.00013597,2]
[356049890,1741852165483,-151.0,0.00013597,2]
[356049891,1741852165505,-151.0,0.00013597,2]
[356049892,1741852165525,-215.936597,0.00013597,2]
[356049893,1741852165547,-224.045014,0.00013597,2]
[356049894,1741852165568,-151.0,0.00013597,2]
[356049895,1741852165589,-151.0,0.00013597,2]
[356049896,1741852165614,-151.0,0.00013597,2]
[356049897,1741852165635,-151.0,0.00013597,2]
[356049898,1741852165656,-151.0,0.00013597,2]
[356049899,1741852165677,-151.0,0.00013597,2]
[356049900,1741852165699,-151.0,0.00013597,2]
[356049901,1741852165719,-151.0,0.00013597,2]
[356049902,1741852165741,-151.0,0.00013597,2]
[356049903,1741852165762,-170.199628,0.00013598,2]
[356049904,1741852165784,-167.96664147,0.00013598,2]
[356049905,1741852165807,-3000.0,0.00013598,2]
[356049906,1741852165828,-1000.0,0.000136,2]
[356049907,1741852165852,-311.0445066,0.00013635,2]
[356049908,1741852165874,-8333.31,0.00013672,2]
[356049909,1741852165896,-151.0,0.00013672,2]
[356049910,1741852165920,-1684.036489,0.00013672,2]
[356049911,1741852165943,-1684.036489,0.00013672,2]
[356049912,1741852165966,-500.0,0.00013673,2]
[356049913,1741852165989,-500.0,0.00013673,2]
[356049914,1741852166010,-436.69600902,0.00013673,2]
[356049915,1741852166033,-500.0,0.00013673,2]
[356049916,1741852166055,-500.0,0.00013673,2]
[356049917,1741852166077,-500.0,0.00013673,2]
[356049918,1741852166099,-500.0,0.00013673,2]
[356049919,1741852166121,-500.0,0.00013673,2]
[356049920,1741852166142,-500.0,0.00013673,2]
[356049921,1741852166164,-500.0,0.00013673,2]
[356049922,1741852166185,-500.0,0.00013673,2]
[356049923,1741852166206,-430.96294249,0.00013673,2]
[356049924,1741852166227,-474.79808724,0.00013673,2]
[356049925,1741852166247,-500.0,0.00013673,2]
[356049926,1741852166270,-500.0,0.00013673,2]
[356049927,1741852166291,-159.46082803,0.00013673,2]
[356049928,1741852166313,-500.0,0.00013673,2]
[356049929,1741852166335,-500.0,0.00013673,2]
[356049930,1741852166356,-500.0,0.00013673,2]
[356049931,1741852166377,-500.0,0.00013673,2]
[356049932,1741852166398,-500.0,0.00013673,2]
[356049933,1741852166420,-502.13307768,0.00013673,2]
[356049934,1741852166441,-500.0,0.00013673,2]
[356049935,1741852166462,-500.0,0.00013673,2]
[356049936,1741852166484,-500.0,0.00013673,2]
[356049937,1741852166504,-500.0,0.00013673,2]
[356049938,1741852166525,-418.05211272,0.00013673,2]
[356049939,1741852166547,-500.0,0.00013673,2]
[356049940,1741852166568,-404.91111414,0.00013673,2]
[356049941,1741852166589,-500.0,0.00013673,2]
[356049942,1741852166614,-500.0,0.00013673,2]
[356049943,1741852166635,-500.0,0.00013673,2]
[356049944,1741852166657,-500.0,0.00013673,2]
[356049945,1741852166677,-151.63482218,0.00013673,2]
[356049946,1741852166702,-500.0,0.00013673,2]
[356049947,1741852166723,-500.0,0.00013673,2]
[356049948,1741852166744,-500.0,0.00013673,2]
[356049949,1741852166767,-500.0,0.00013673,2]
[356049950,1741852166790,-503.59990594,0.00013673,2]
[356049951,1741852166811,-563.5413799,0.00013673,2]
[356049952,1741852166834,-500.0,0.00013673,2]
[356049953,1741852166856,-500.0,0.00013673,2]
[356049954,1741852166878,-500.0,0.00013673,2]
[356049955,1741852167086,-500.0,0.00013673,2]
[356049956,1741852167117,-500.0,0.00013673,2]
[356049957,1741852167139,-500.0,0.00013673,2]
[356049958,1741852167161,-500.0,0.00013673,2]
[356049959,1741852167182,-500.0,0.00013673,2]
[356049960,1741852167203,-500.0,0.00013673,2]
[356049961,1741852167226,-400.90996918,0.00013673,2]
[356049962,1741852167247,-500.0,0.00013673,2]
[356049963,1741852167268,-500.0,0.00013673,2]
[356049964,1741852167289,-500.0,0.00013673,2]
[356049965,1741852167312,-500.0,0.00013673,2]
[356049966,1741852167333,-500.0,0.00013673,2]
[356049967,1741852167355,-500.0,0.00013673,2]
[356049968,1741852167376,-363.35429655,0.00013673,2]
[356049969,1741852167397,-267.66825223,0.00013673,2]
[356049970,1741852167419,-500.0,0.00013673,2]
[356049971,1741852167440,-500.0,0.00013673,2]
[356049972,1741852167461,-500.0,0.00013673,2]
[356049973,1741852167483,-500.0,0.00013673,2]
[356049974,1741852167504,-152.913795,0.00013673,2]
[356049975,1741852167525,-1684.036489,0.00013673,2]
[356049976,1741852167545,-1684.036489,0.00013673,2]
[356049977,1741852167566,-250.942328,0.00013673,2]
[356049978,1741852167587,-151.0,0.00013673,2]
[356049979,1741852167611,-296.668247,0.00013673,2]
[356049980,1741852167633,-7538.44310068,0.00013674,2]
[356049981,1741852167654,-8333.31,0.00013697,2]
[356049982,1741852167675,-8333.31,0.00013697,2]
[356049983,1741852167698,-8333.31,0.00013697,2]
[356049984,1741852167720,-8333.31,0.00013697,2]
[356049985,1741852167741,-8333.31,0.00013697,2]
[356049986,1741852167762,-8333.31,0.00013697,2]
[356049987,1741852167783,-8333.31,0.00013697,2]
[356049988,1741852167805,-1866.41564226,0.00013697,2]
[356049993,1741852215565,-5000.0,0.00010849,2]
[356049994,1741852215587,-2889.08,0.00010959,2]
[356049995,1741852215610,-2407.57,0.00010959,2]
[356049996,1741852215635,-300.0,0.0001346,2]
[356049997,1741852215663,-5000.0,0.00013461,2]
[356049998,1741852215685,-151.0,0.00013589,2]
[356049999,1741852215706,-1000.0,0.00013589,2]
[356050000,1741852215727,-151.0,0.00013597,2]
[356050001,1741852215748,-151.0,0.00013597,2]
[356050002,1741852215772,-151.0,0.00013597,2]
[356050003,1741852215796,-151.0,0.00013597,2]
[356050004,1741852215824,-482.491728,0.00013597,2]
[356050005,1741852215845,-482.491728,0.00013597,2]
[356050006,1741852215866,-482.491728,0.00013597,2]
[356050007,1741852215889,-482.491728,0.00013597,2]
[356050008,1741852215912,-482.491728,0.00013597,2]
[356050009,1741852215933,-482.491728,0.00013597,2]
[356050010,1741852215953,-482.491728,0.00013597,2]
[356050011,1741852215974,-482.491728,0.00013597,2]
[356050012,1741852215996,-152.0,0.00013634,2]
[356050013,1741852216019,-420.67002841,0.00013673,2]
[356050014,1741852216040,-558.97964826,0.00013673,2]
[356050015,1741852216063,-500.0,0.00013673,2]
[356050016,1741852216084,-397.58844191,0.00013673,2]
[356050017,1741852216106,-500.0,0.00013673,2]
[356050018,1741852216127,-468.43671897,0.00013673,2]
[356050019,1741852216148,-500.0,0.00013673,2]
[356050020,1741852216169,-500.0,0.00013673,2]
[356050021,1741852216190,-500.0,0.00013673,2]
[356050022,1741852216212,-500.0,0.00013673,2]
[356050023,1741852216233,-500.0,0.00013673,2]
[356050024,1741852216254,-500.0,0.00013673,2]
[356050025,1741852216276,-500.0,0.00013673,2]
[356050026,1741852216296,-500.0,0.00013673,2]
[356050027,1741852216318,-500.0,0.00013673,2]
[356050028,1741852216339,-500.0,0.00013673,2]
[356050029,1741852216360,-151.0,0.00013673,2]
[356050030,1741852216380,-151.0,0.00013673,2]
[356050031,1741852216403,-482.491728,0.00013673,2]
[356050032,1741852216424,-482.491728,0.00013673,2]
[356050033,1741852216446,-482.491728,0.00013673,2]
[356050034,1741852216468,-482.491728,0.00013673,2]
[356050035,1741852216490,-20000.0,0.00013697,2]
[356050036,1741852216512,-6466.89435774,0.00013697,2]
[356050037,1741852216532,-8333.31,0.00013697,2]
[356050038,1741852216553,-8333.4134502,0.00013697,2]
[356050039,1741852216574,-1684.036489,0.00013697,2]
[356050040,1741852216595,-1684.036489,0.00013697,2]
[356050041,1741852216616,-1684.036489,0.00013697,2]
[356050042,1741852216641,-1684.036489,0.00013697,2]
[356050043,1741852216663,-1684.036489,0.00013697,2]
[356050044,1741852216684,-1684.036489,0.00013697,2]
[356050045,1741852216706,-1684.036489,0.00013697,2]
[356050046,1741852216727,-1684.036489,0.00013697,2]
[356050047,1741852216747,-151.0,0.00013697,2]
[356050048,1741852216772,-482.491728,0.00013697,2]
[356050049,1741852216802,-482.491728,0.00013697,2]
[356050050,1741852216833,-482.491728,0.00013697,2]
[356050051,1741852216862,-482.491728,0.00013697,2]
[356050052,1741852216885,-482.491728,0.00013697,2]
[356050053,1741852216907,-482.491728,0.00013697,2]
[356050054,1741852216929,-482.491728,0.00013697,2]
[356050055,1741852216950,-482.491729,0.00013697,2]
[356050056,1741852217872,5000.0,0.00010741,2]
[356050057,1741852217899,500.0,0.00013673,2]
[356050058,1741852218595,291.67007529,0.00013673,2]
[356050059,1741852219001,198.84353703,0.00013496,2]
[356050060,1741852219028,500.0,0.00013673,2]
[356050061,1741852219792,500.0,0.00013673,2]
[356050062,1741852220251,2006.31,0.00010959,2]
[356050063,1741852223322,500.0,0.00013673,2]
[356050064,1741852223464,499.31570729,0.00013673,2]
[356050065,1741852223648,500.0,0.00013673,2]
[356050066,1741852224037,-500.0,0.00013673,2]
[356050067,1741852224059,-563.86634403,0.00013698,2]
[356050068,1741852224080,-503.97404883,0.00013698,2]
[356050069,1741852224101,-500.0,0.00013698,2]
[356050070,1741852224123,-500.0,0.00013698,2]
[356050071,1741852224145,-500.0,0.00013698,2]
[356050072,1741852224176,-500.0,0.00013698,2]
[356050073,1741852224198,-624.9347353,0.00013698,2]
[356050074,1741852224219,-503.56992451,0.00013698,2]
[356050075,1741852224242,-500.0,0.00013698,2]
[356050076,1741852224265,-500.0,0.00013698,2]
[356050077,1741852224286,-500.0,0.00013698,2]
[356050078,1741852224308,-830.27,0.00013698,2]
[356050079,1741852224331,-500.0,0.00013698,2]
[356050080,1741852224352,-503.83770108,0.00013698,2]
[356050081,1741852224372,-500.0,0.00013698,2]
[356050082,1741852224394,-1204.23,0.00013698,2]
[356050083,1741852224416,-500.0,0.00013698,2]
[356050084,1741852224440,-500.0,0.00013698,2]
[356050085,1741852224462,-500.0,0.00013698,2]
[356050086,1741852224484,-500.0,0.00013698,2]
[356050087,1741852224506,-500.0,0.00013698,2]
[356050088,1741852224527,-271.66566429,0.00013698,2]
[356050089,1741852224549,-500.56670335,0.00013698,2]
[356050090,1741852224570,-500.0,0.00013698,2]
[356050091,1741852224591,-500.0,0.00013698,2]
[356050092,1741852224622,-500.0,0.00013698,2]
[356050093,1741852224653,-516.9984743,0.00013698,2]
[356050094,1741852224677,-574.53823203,0.00013698,2]
[356050095,1741852224699,-562.64,0.00013698,2]
[356050096,1741852224724,-500.0,0.00013698,2]
[356050097,1741852224746,-500.0,0.00013698,2]
[356050098,1741852224767,-500.0,0.00013698,2]
[356050099,1741852224789,-500.0,0.00013698,2]
[356050100,1741852224812,-500.0,0.00013698,2]
[356050101,1741852224835,-500.0,0.00013698,2]
[356050102,1741852224858,-500.0,0.00013698,2]
[356050103,1741852224881,-500.0,0.00013698,2]
[356050104,1741852224905,-500.0,0.00013698,2]
[356050105,1741852225165,-500.0,0.00013698,2]
[356050106,1741852225188,-603.01,0.00013698,2]
[356050107,1741852225211,-500.0,0.00013698,2]
[356050108,1741852225237,-1184.1,0.00013698,2]
[356050109,1741852225260,-500.0,0.00013698,2]
[356050110,1741852225283,-501.22831377,0.00013698,2]
[356050111,1741852225304,-504.86664855,0.00013698,2]
[356050112,1741852225329,-500.0,0.00013698,2]
[356050113,1741852225352,-500.0,0.00013698,2]
[356050114,1741852225374,-648.04,0.00013698,2]
[356050115,1741852225396,-1198.64,0.00013698,2]
[356050116,1741852225418,-501.95510236,0.00013698,2]
[356050117,1741852225440,-500.0,0.00013698,2]
[356050118,1741852225463,-505.23959681,0.00013698,2]
[356050119,1741852225485,-501.28793567,0.00013698,2]
[356050120,1741852225507,-504.88968848,0.00013698,2]
[356050121,1741852225530,-500.0,0.00013698,2]
[356050122,1741852225552,-500.0,0.00013698,2]
[356050123,1741852225573,-500.0,0.00013698,2]
[356050124,1741852225595,-500.0,0.00013698,2]
[356050125,1741852225619,-500.0,0.00013698,2]
[356050126,1741852225645,-500.0,0.00013698,2]
[356050127,1741852225668,-500.0,0.00013698,2]
[356050128,1741852225690,-500.0,0.00013698,2]
[356050129,1741852225713,-244.79911268,0.00013698,2]
[356050130,1741852225737,-500.0,0.00013698,2]
[356050131,1741852225759,-500.0,0.00013698,2]
[356050132,1741852225781,-500.0,0.00013698,2]
[356050133,1741852225805,-500.0,0.00013698,2]
[356050134,1741852225828,-500.0,0.00013698,2]
[356050135,1741852225852,-500.0,0.00013698,2]
[356050136,1741852225875,-500.0,0.00013698,2]
[356050137,1741852225898,-500.0,0.00013698,2]
[356050138,1741852225920,-500.0,0.00013698,2]
[356050139,1741852225942,-500.0,0.00013698,2]
[356050140,1741852225965,-500.0,0.00013698,2]
[356050141,1741852225989,-500.0,0.00013698,2]
[356050142,1741852226014,-500.0,0.00013698,2]
[356050143,1741852226037,-500.0,0.00013698,2]
[356050144,1741852226059,-500.0,0.00013698,2]
[356050145,1741852226082,-500.0,0.00013698,2]
[356050146,1741852226103,-594.25787595,0.00013698,2]
[356050147,1741852226125,-500.0,0.00013698,2]
[356050148,1741852226146,-500.0,0.00013698,2]
[356050149,1741852226168,-704.67,0.00013698,2]
[356050150,1741852226190,-490.0,0.00013698,2]
[356050151,1741852226212,-504.83468856,0.00013698,2]
[356050152,1741852226235,-500.0,0.00013698,2]
[356050153,1741852226258,-500.0,0.00013698,2]
[356050154,1741852226281,-500.0,0.00013698,2]
[356050155,1741852226303,-500.0,0.00013698,2]
[356050156,1741852226325,-500.0,0.00013698,2]
[356050157,1741852226348,-500.0,0.00013698,2]
[356050158,1741852226370,-503.59,0.00013698,5]
[356050159,1741852226392,-533.68093262,0.00013698,2]
[356050160,1741852226414,-500.0,0.00013698,2]
[356050161,1741852226436,-500.0,0.00013698,2]
[356050162,1741852226457,-500.0,0.00013698,2]
[356050163,1741852226479,-500.0,0.00013698,2]
[356050164,1741852226501,-500.0,0.00013698,2]
[356050165,1741852226522,-500.0,0.00013698,2]
[356050166,1741852226544,-500.0,0.00013698,2]
[356050167,1741852226566,-500.0,0.00013698,2]
[356050168,1741852226587,-1951.65,0.00013698,2]
[356050169,1741852226611,-1951.65,0.00013698,2]
[356050170,1741852226635,-1951.65,0.00013698,2]
[356050171,1741852226657,-1951.65,0.00013698,2]
[356050172,1741852226680,-1951.65,0.00013698,2]
[356050173,1741852226702,-1951.65,0.00013698,2]
[356050174,1741852226723,-1951.65,0.00013698,2]
[356050175,1741852226745,-1951.65,0.00013698,2]
[356050176,1741852226766,-1951.65,0.00013698,2]
[356050177,1741852226787,-1951.65,0.00013698,2]
[356050178,1741852226808,-1951.65,0.00013698,2]